bitfinex/quotes_SOLUSD_20251031
["timestamp","ask_amount","ask_price","bid_price","bid_amount"]
[1761922608096,20.592,189.62,189.57,2.75924451]
[1761922608302,20.592,189.62,189.6,5.32512705]
[1761922608506,20.592,189.62,189.57,2.75924451]
[1761922608507,20.592,189.62,189.61,5.32512705]
[1761922608903,20.592,189.62,189.61,5.46728862]
[1761922609102,0.7,189.64,189.62,0.14216157]
[1761922609299,0.1,189.67,189.64,0.14216157]
[1761922609508,0.7,189.66,189.64,0.14216157]
[1761922609736,0.7,189.66,189.65,5.60945019]
[1761922610023,6.07234345,189.67,189.65,5.60945019]
[1761922610523,6.07234345,189.67,189.58,10.46882769]
[1761922610524,6.02512705,189.66,189.61,0.28432314]
[1761922610727,5.32512705,189.62,189.56,50.0]
[1761922610945,5.32512705,189.58,189.54,50.0]
[1761922611435,0.7,189.58,189.54,50.0]
[1761922611914,5.32512705,189.57,189.55,0.28432314]
[1761922612121,0.7,189.58,189.55,0.28432314]
[1761922612506,5.32512705,189.56,189.55,0.28432314]
[1761922612703,5.32512705,189.56,189.52,50.0]
[1761922612945,5.32512705,189.53,189.5,55.27704479]
[1761922613423,5.32512705,189.52,189.5,50.0]
[1761922613630,0.7,189.52,189.47,50.0]
[1761922614011,0.7,189.52,189.48,0.28432314]
[1761922614214,0.7,189.52,189.42,55.27925877]
[1761922614425,5.32512705,189.47,189.44,50.0]
[1761922614818,0.7,189.52,189.46,50.0]
[1761922615019,5.32512705,189.51,189.47,0.28432314]
[1761922615318,5.32512705,189.51,189.49,0.28432314]
[1761922615511,5.32512705,189.51,189.48,0.28432314]
[1761922615923,5.32512705,189.51,189.48,50.28432314]
[1761922616527,5.32512705,189.51,189.48,55.56168613]
[1761922616838,5.32512705,189.51,189.45,13.19600016]
[1761922616839,5.32512705,189.49,189.43,50.0]
[1761922617014,0.7,189.5,189.43,50.0]
[1761922617015,5.32512705,189.45,189.43,50.0]
[1761922617213,5.32512705,189.44,189.41,50.0]
[1761922617510,5.32512705,189.44,189.42,0.28432314]
[1761922617706,0.66,189.49,189.41,50.0]
[1761922618434,5.32512705,189.46,189.45,0.28432314]
[1761922618638,0.66,189.53,189.45,50.28432314]
[1761922618936,5.32512705,189.49,189.45,50.28432314]
[1761922619355,5.32512705,189.46,189.45,0.28432314]
[1761922619553,0.66,189.48,189.41,50.0]
[1761922619739,5.32512705,189.46,189.41,55.27950914]
[1761922620046,5.32512705,189.45,189.42,0.28432314]
[1761922620416,5.32512705,189.44,189.42,5.56335509]
[1761922620631,0.66,189.51,189.45,0.28432314]
[1761922620841,5.32512705,189.53,189.45,0.28432314]
[1761922621050,0.66,189.52,189.45,0.28432314]
[1761922621340,0.66,189.52,189.41,50.0]
[1761922621726,5.32512705,189.44,189.43,0.28432314]
[1761922622040,5.32512705,189.53,189.46,0.28432314]
[1761922622217,5.32512705,189.47,189.46,0.28432314]
[1761922622420,0.66,189.58,189.5,0.28432314]
[1761922622637,5.32512705,189.53,189.5,50.28432314]
[1761922622836,18.4569952,189.63,189.5,50.98432314]
[1761922623036,0.66,189.61,189.5,50.28432314]
[1761922623239,0.66,189.61,189.54,0.28432314]
[1761922623448,0.66,189.65,189.59,0.14216157]
[1761922623653,5.32512705,189.6,189.57,0.28432314]
[1761922623814,5.32512705,189.64,189.52,0.28432314]
[1761922624015,0.66,189.63,189.52,0.28432314]
[1761922624219,21.252,189.63,189.52,0.28432314]
[1761922624416,21.252,189.63,189.56,0.28432314]
[1761922624417,0.66,189.63,189.56,0.28432314]
[1761922624636,5.32512705,189.57,189.56,0.28432314]
[1761922624922,5.32512705,189.57,189.51,0.28432314]
[1761922625118,5.32512705,189.52,189.51,0.28432314]
[1761922625370,5.32512705,189.52,189.46,50.0]
[1761922625651,5.32512705,189.47,189.44,55.27869289]
[1761922625820,5.32512705,189.45,189.42,50.0]
[1761922626015,20.592,189.6,189.42,55.27927357]
[1761922626224,0.66,189.51,189.44,50.0]
[1761922626426,0.66,189.51,189.45,0.28432314]
[1761922626627,0.66,189.51,189.45,5.27838793]
[1761922627049,0.66,189.51,189.46,0.28432314]
[1761922627354,5.32512705,189.47,189.46,0.28432314]
[1761922627553,0.66,189.51,189.46,0.28432314]
[1761922627729,5.32512705,189.47,189.46,0.28432314]
[1761922628060,5.32512705,189.47,189.41,5.27955229]
[1761922628349,0.66,189.5,189.44,0.28432314]
[1761922628652,5.32512705,189.46,189.45,18.75885467]
[1761922629055,5.32512705,189.46,189.45,0.28432314]
[1761922629348,0.66,189.52,189.47,50.0]
[1761922629558,0.66,189.52,189.48,0.28432314]
[1761922629759,0.66,189.58,189.51,0.28432314]
[1761922630626,0.66,189.58,189.53,0.28432314]
[1761922630849,5.32512705,189.54,189.53,0.28432314]
[1761922631349,5.98512705,189.54,189.48,0.28432314]
[1761922631571,20.592,189.62,189.48,0.28432314]
[1761922631572,0.66,189.57,189.48,0.28432314]
[1761922631859,5.32512705,189.56,189.5,55.60945019]
[1761922632159,5.32512705,189.57,189.52,50.28432314]
[1761922632661,5.32512705,189.56,189.52,50.28432314]
[1761922632955,0.66,189.6,189.52,68.7519975]
[1761922633161,5.32512705,189.56,189.52,50.28432314]
[1761922633659,5.32512705,189.58,189.52,55.56071774]
[1761922633865,5.32512705,189.58,189.52,68.75193766]
[1761922634065,5.32512705,189.54,189.49,0.52773233]
[1761922634267,26.9626015,189.68,189.51,5.32512705]
[1761922634439,5.32512705,189.62,189.56,0.28432314]
[1761922634644,5.32512705,189.62,189.58,0.28432314]
[1761922634962,5.32512705,189.61,189.58,0.28432314]
[1761922635130,13.28085118,189.67,189.58,0.28432314]
[1761922635131,5.32512705,189.6,189.58,0.28432314]
[1761922635333,0.66,189.66,189.58,0.28432314]
[1761922635556,5.32512705,189.6,189.58,0.28432314]
[1761922636141,5.32512705,189.59,189.58,0.28432314]
[1761922636342,5.98512705,189.59,189.53,50.0]
[1761922636539,0.66,189.58,189.49,50.0]
[1761922636764,5.32512705,189.55,189.5,5.27701608]
[1761922636935,5.9349472,189.58,189.5,5.27701608]
[1761922636936,5.32512705,189.56,189.51,0.28432314]
[1761922637537,5.32512705,189.57,189.51,0.28432314]
[1761922637754,5.32512705,189.56,189.51,0.28432314]
[1761922638039,5.32512705,189.55,189.51,0.28432314]
[1761922638634,5.32512705,189.52,189.47,50.0]
[1761922638871,0.71,189.54,189.47,50.0]
[1761922639074,5.32512705,189.53,189.48,0.28432314]
[1761922639242,6.03512705,189.53,189.48,0.28432314]
[1761922639656,18.4599673,189.6,189.45,18.47452789]
[1761922639657,5.32512705,189.51,189.45,68.47452789]
[1761922639866,5.32512705,189.5,189.45,55.2784347]
[1761922640164,0.71,189.52,189.45,55.2784347]
[1761922640374,5.32512705,189.5,189.45,55.2784347]
[1761922640563,6.03512705,189.52,189.45,60.60356175]
[1761922640733,0.71,189.52,189.46,5.32512705]
[1761922640929,6.03512705,189.52,189.46,0.28432314]
[1761922642083,5.32512705,189.5,189.46,0.28432314]
[1761922642378,0.71,189.51,189.4,50.0]
[1761922642662,5.32512705,189.47,189.4,50.0]
[1761922642832,5.32512705,189.45,189.4,50.0]
[1761922643033,5.32512705,189.45,189.41,0.28432314]
[1761922643237,0.71,189.51,189.41,6.04512705]
[1761922643460,5.32512705,189.47,189.42,0.28432314]
[1761922643834,0.71,189.5,189.45,0.28432314]
[1761922644146,0.71,189.49,189.45,0.28432314]
[1761922644348,5.32512705,189.47,189.45,0.28432314]
[1761922644561,5.32512705,189.46,189.41,50.0]
[1761922644763,5.32512705,189.45,189.42,5.56341291]
[1761922645066,5.32512705,189.44,189.38,50.0]
[1761922645248,19.17770788,189.52,189.34,2.75767029]
[1761922645249,0.71,189.43,189.36,50.0]
[1761922645447,5.32512705,189.39,189.34,2.75767029]
[1761922645651,5.32512705,189.4,189.34,2.75767029]
[1761922646166,5.32512705,189.39,189.34,2.75767029]
[1761922646356,0.71,189.4,189.35,0.28432314]
[1761922646664,0.71,189.4,189.34,2.75767029]
[1761922646665,0.71,189.4,189.34,8.03916237]
[1761922646870,6.03512705,189.4,189.34,8.03916237]
[1761922647059,6.03512705,189.4,189.34,13.36428942]
[1761922647358,5.98512705,189.45,189.38,55.32512705]
[1761922647567,5.98512705,189.45,189.39,0.28432314]
[1761922647753,0.66,189.45,189.4,5.32512705]
[1761922647940,0.66,189.45,189.39,5.60945019]
[1761922648567,0.66,189.45,189.4,5.32512705]
[1761922648770,0.66,189.45,189.42,0.28432314]
[1761922648970,0.66,189.52,189.42,10.60107818]
[1761922649272,5.32512705,189.52,189.46,0.28432314]
[1761922649449,5.32512705,189.51,189.46,0.28432314]
[1761922649655,5.32512705,189.5,189.46,0.28432314]
[1761922649851,5.32512705,189.48,189.42,0.28432314]
[1761922650044,5.32512705,189.47,189.42,0.28432314]
[1761922650250,5.32512705,189.48,189.42,0.28432314]
[1761922650451,5.98512705,189.49,189.42,5.60945019]
[1761922650647,20.592,189.54,189.42,0.28432314]
[1761922650648,5.98512705,189.48,189.42,0.28432314]
[1761922650874,11.26285716,189.48,189.42,0.28432314]
[1761922651050,11.26285716,189.48,189.37,50.0]
[1761922651051,5.32512705,189.44,189.37,50.0]
[1761922651245,0.66,189.47,189.38,5.56448636]
[1761922651443,0.66,189.47,189.41,58.0896059]
[1761922651640,0.66,189.47,189.42,0.28432314]
[1761922651855,1.99999999,189.6,189.42,0.28432314]
[1761922651856,0.66,189.5,189.42,0.28432314]
[1761922652259,8.0896059,189.48,189.42,0.28432314]
[1761922652456,8.0896059,189.47,189.42,0.28432314]
[1761922652880,8.7496059,189.47,189.42,0.28432314]
[1761922653254,8.7496059,189.47,189.38,71.29057749]
[1761922653255,8.0896059,189.45,189.38,71.29057749]
[1761922653455,8.0896059,189.45,189.39,5.28010982]
[1761922653656,8.7496059,189.45,189.39,0.28432314]
[1761922653870,0.66,189.5,189.45,0.28432314]
[1761922654668,0.66,189.5,189.45,8.37392904]
[1761922654872,0.66,189.5,189.45,5.56261047]
[1761922655066,0.66,189.5,189.45,13.65221637]
[1761922655256,5.93709738,189.5,189.45,0.28432314]
[1761922655749,0.66,189.5,189.45,5.56275458]
[1761922656371,20.592,189.56,189.45,5.56275458]
[1761922656372,0.66,189.54,189.48,0.28432314]
[1761922656555,8.0896059,189.54,189.48,0.28432314]
[1761922656762,0.66,189.53,189.46,8.37392904]
[1761922656983,5.27648796,189.52,189.47,0.28432314]
[1761922657579,8.7496059,189.51,189.47,0.28432314]
[1761922657954,8.0896059,189.48,189.39,50.0]
[1761922658159,8.0896059,189.46,189.39,63.36970904]
[1761922658478,0.66,189.49,189.38,58.0896059]
[1761922658658,8.7496059,189.49,189.42,8.0896059]
[1761922658993,8.7496059,189.49,189.38,5.2802925]
[1761922658994,13.36776487,189.46,189.38,5.2802925]
[1761922659154,8.0896059,189.42,189.34,53.45767029]
[1761922659360,8.0896059,189.42,189.35,0.28432314]
[1761922659576,0.66,189.42,189.34,61.54727619]
[1761922659755,8.0896059,189.4,189.34,2.75767029]
[1761922660157,20.592,189.46,189.38,8.0896059]
[1761922660359,15.82769457,189.67,189.35,0.7]
[1761922660360,0.66,189.45,189.37,0.28432314]
[1761922660660,8.7496059,189.45,189.4,0.28432314]
[1761922660884,8.0896059,189.44,189.4,0.28432314]
[1761922661094,8.0896059,189.42,189.35,8.37392904]
[1761922661254,8.7496059,189.43,189.36,8.0896059]
[1761922661690,8.0896059,189.4,189.34,2.75767029]
[1761922661993,8.0896059,189.4,189.33,8.0896059]
[1761922662154,8.0896059,189.38,189.31,2.75971347]
[1761922662354,8.0896059,189.36,189.31,2.75971347]
[1761922662553,8.0896059,189.37,189.3,8.0896059]
[1761922662756,0.66,189.41,189.35,8.0896059]
[1761922662996,5.27983104,189.4,189.37,0.28432314]
[1761922663201,0.66,189.41,189.37,0.28432314]
[1761922663202,5.93959184,189.41,189.37,0.28432314]
[1761922663374,0.66,189.44,189.39,0.28432314]
[1761922663692,33.78878728,189.45,189.39,0.28432314]
[1761922663693,0.66,189.43,189.39,8.37392904]
[1761922663904,0.66,189.43,189.39,0.28432314]
[1761922664362,0.66,189.43,189.28,40.29104231]
[1761922664363,8.0896059,189.41,189.34,0.28432314]
[1761922664763,0.66,189.41,189.36,0.28432314]
[1761922664962,5.27983104,189.4,189.36,0.28432314]
[1761922665482,0.66,189.39,189.36,0.28432314]
[1761922666162,0.66,189.39,189.3,50.0]
[1761922666163,8.7496059,189.39,189.3,50.0]
[1761922666356,8.0896059,189.37,189.3,50.0]
[1761922666559,8.0896059,189.36,189.28,9.60943642]
[1761922666958,13.20376499,189.34,189.28,9.60943642]
[1761922667276,8.0896059,189.33,189.28,9.60943642]
[1761922667460,8.0896059,189.32,189.28,9.60943642]
[1761922667662,0.66,189.32,189.28,9.60943642]
[1761922668360,8.0896059,189.31,189.28,9.60943642]
[1761922668754,18.4852646,189.34,189.28,9.60943642]
[1761922668755,0.66,189.33,189.28,9.60943642]
[1761922668987,8.0896059,189.32,189.28,9.60943642]
[1761922669297,5.94203826,189.33,189.28,9.60943642]
[1761922669298,0.66,189.33,189.28,9.60943642]
[1761922669499,0.66,189.36,189.3,8.0896059]
[1761922669663,8.7496059,189.36,189.29,0.98432314]
[1761922669866,8.7496059,189.36,189.29,8.37392904]
[1761922670059,8.0896059,189.31,189.29,0.28432314]
[1761922670366,8.0896059,189.32,189.28,9.60943642]
[1761922670579,8.0896059,189.29,189.28,9.60943642]
[1761922670961,33.797188,189.32,189.28,9.60943642]
[1761922671167,14.03194703,189.31,189.28,9.60943642]
[1761922671687,8.0896059,189.33,189.29,0.28432314]
[1761922672058,0.66,189.32,189.28,9.60943642]
[1761922672463,8.0896059,189.31,189.28,9.60943642]
[1761922672969,0.66,189.31,189.28,9.60943642]
[1761922673180,8.7496059,189.31,189.28,9.60943642]
[1761922673384,8.0896059,189.3,189.28,9.60943642]
[1761922673699,0.66,189.33,189.28,9.60943642]
[1761922673864,8.0896059,189.32,189.28,14.89257755]
[1761922674060,25.87327129,189.35,189.29,0.28432314]
[1761922674307,8.0896059,189.33,189.29,0.28432314]
[1761922674588,0.66,189.34,189.29,0.28432314]
[1761922674887,8.0896059,189.33,189.29,0.28432314]
[1761922675418,8.0896059,189.33,189.28,17.69904232]
[1761922675419,8.0896059,189.3,189.28,9.60943642]
[1761922675591,8.0896059,189.31,189.28,9.60943642]
[1761922675967,0.66,189.33,189.29,0.28432314]
[1761922676291,8.7496059,189.32,189.29,0.28432314]
[1761922676586,8.0896059,189.34,189.29,0.28432314]
[1761922677090,8.0896059,189.33,189.29,0.28432314]
[1761922677387,8.0896059,189.34,189.31,0.28432314]
[1761922677785,0.68,189.33,189.31,0.28432314]
[1761922677990,25.87213121,189.39,189.31,0.28432314]
[1761922678177,8.0896059,189.34,189.31,0.28432314]
[1761922678371,7.53220339,189.33,189.31,0.28432314]
[1761922678576,8.0896059,189.32,189.28,9.60943642]
[1761922678779,8.7696059,189.32,189.29,0.28432314]
[1761922678989,0.68,189.31,189.28,9.60943642]
[1761922679162,8.0896059,189.31,189.28,9.60943642]
[1761922679580,8.7696059,189.31,189.28,9.60943642]
[1761922679971,5.96154077,189.34,189.28,9.60943642]
[1761922680174,8.0896059,189.32,189.28,9.60943642]
[1761922680376,5.28154077,189.34,189.28,9.60943642]
[1761922680377,8.0896059,189.31,189.28,9.60943642]
[1761922680685,0.68,189.33,189.28,14.89255188]
[1761922680994,8.0896059,189.32,189.28,14.89255188]
[1761922681188,8.0896059,189.31,189.28,9.60943642]
[1761922681375,8.0896059,189.29,189.28,9.60943642]
[1761922682005,8.7696059,189.29,189.28,8.88943642]
[1761922682411,8.0896059,189.27,189.26,0.2]
[1761922682866,8.7696059,189.27,189.26,0.2]
[1761922683071,8.7696059,189.27,189.26,1e-08]
[1761922683294,14.05306339,189.27,189.26,1e-08]
[1761922684411,23.84189108,189.27,189.26,1e-08]
[1761922684572,14.05306339,189.27,189.26,1e-08]
[1761922685522,34.64506339,189.27,189.26,1e-08]
[1761922685680,26.55545749,189.27,189.26,1e-08]
[1761922685874,34.64506339,189.27,189.26,1e-08]
[1761922688605,14.05306339,189.27,189.26,1e-08]
[1761922690000,5.28345749,189.27,189.26,1e-08]
[1761922690183,14.05306339,189.27,189.26,1e-08]
[1761922690384,5.96345749,189.27,189.26,1e-08]
[1761922690592,14.05306339,189.27,189.26,1e-08]
[1761922691579,8.7696059,189.27,189.26,1e-08]
[1761922691903,5.96265563,189.3,189.26,1e-08]
[1761922692087,8.0896059,189.28,189.26,1e-08]
[1761922693103,14.05306339,189.27,189.26,1e-08]
[1761922693405,8.0896059,189.27,189.26,1e-08]
[1761922693589,8.0896059,189.29,189.26,0.69000001]
[1761922694105,8.0896059,189.3,189.26,0.69000001]
[1761922694278,20.592,189.32,189.26,0.69000001]
[1761922694475,13.20282589,189.36,189.26,0.69000001]
[1761922694476,13.20282589,189.36,189.28,0.28432314]
[1761922694677,8.0896059,189.32,189.28,0.28432314]
[1761922694902,0.68,189.35,189.28,0.97432314]
[1761922695218,8.0896059,189.33,189.29,5.97289925]
[1761922695376,102.1,189.39,189.28,5.56748177]
[1761922695708,8.0896059,189.35,189.3,0.97432314]
[1761922696217,8.0896059,189.33,189.3,0.28432314]
[1761922696406,8.0896059,189.32,189.3,0.28432314]
[1761922697811,8.0896059,189.32,189.3,0.69]
[1761922698013,20.592,189.38,189.3,0.69]
[1761922698193,8.0896059,189.35,189.3,0.69]
[1761922698389,26.55240289,189.38,189.31,0.28432314]
[1761922698697,8.0896059,189.34,189.31,0.28432314]
[1761922699107,5.93983104,189.4,189.32,0.66]
[1761922699295,8.0896059,189.35,189.32,0.66]
[1761922699489,5.27986422,189.4,189.33,0.28432314]
[1761922699698,8.0896059,189.37,189.33,0.28432314]
[1761922700007,8.0896059,189.37,189.33,0.94432314]
[1761922700506,5.93986422,189.4,189.34,0.66]
[1761922700507,8.0896059,189.38,189.34,0.66]
[1761922700810,0.66,189.43,189.35,0.28432314]
[1761922701017,8.0896059,189.4,189.35,0.28432314]
[1761922701184,8.0896059,189.4,189.37,0.28432314]
[1761922701514,0.66,189.48,189.37,0.28432314]
[1761922701684,8.0896059,189.45,189.38,8.7496059]
[1761922701878,8.0896059,189.43,189.39,0.28432314]
[1761922702192,8.0896059,189.42,189.39,0.28432314]
[1761922702792,8.0896059,189.42,189.34,5.28150417]
[1761922703109,0.66,189.45,189.37,0.28432314]
[1761922703311,8.0896059,189.4,189.37,0.28432314]
[1761922703783,8.0896059,189.39,189.34,0.28432314]
[1761922703983,8.0896059,189.39,189.35,0.66]
[1761922704186,18.47764845,189.42,189.34,0.28432314]
[1761922704187,8.0896059,189.38,189.34,0.28432314]
[1761922704386,0.66,189.41,189.31,0.66]
[1761922704689,0.66,189.4,189.31,0.66]
[1761922704890,8.0896059,189.37,189.31,0.66]
[1761922705101,8.0896059,189.36,189.31,0.66]
[1761922705496,13.37063964,189.36,189.31,0.94432314]
[1761922705706,8.0896059,189.35,189.31,0.94432314]
[1761922705902,13.37063964,189.36,189.32,0.66]
[1761922706097,13.86052258,189.39,189.32,0.66]
[1761922706305,8.0896059,189.37,189.32,0.66]
[1761922706500,8.0896059,189.36,189.32,0.66]
[1761922706900,0.66,189.39,189.32,0.66]
[1761922707090,0.66,189.39,189.32,0.94432314]
[1761922707289,8.0896059,189.36,189.32,0.94432314]
[1761922707720,8.0896059,189.36,189.32,6.22632403]
[1761922708216,13.37056833,189.36,189.32,0.94432314]
[1761922708434,13.37056833,189.36,189.32,0.28432314]
[1761922708595,13.37031954,189.37,189.33,0.69]
[1761922708995,8.0896059,189.4,189.35,0.28432314]
[1761922709195,34.51004041,189.43,189.35,8.37392904]
[1761922709401,5.27983104,189.4,189.35,9.06392904]
[1761922709615,13.36943694,189.4,189.35,0.97432314]
[1761922709818,13.36943694,189.4,189.36,0.69]
[1761922710294,8.0896059,189.39,189.36,0.69]
[1761922710792,5.27983104,189.4,189.36,0.69]
[1761922711008,5.99983104,189.4,189.35,0.28432314]
[1761922711207,5.27983104,189.4,189.36,0.69]
[1761922711405,5.27983104,189.4,189.35,0.97432314]
[1761922711727,8.0896059,189.39,189.35,0.69]
[1761922712103,8.0896059,189.38,189.34,0.28432314]
[1761922712428,0.72,189.43,189.34,14.34524969]
[1761922712597,8.0896059,189.4,189.34,14.34524969]
[1761922712795,8.0896059,189.4,189.35,0.69]
[1761922713116,0.72,189.43,189.37,5.28066747]
[1761922713117,8.0896059,189.41,189.37,5.28066747]
[1761922713318,5.27917414,189.43,189.38,0.28432314]
[1761922713495,5.32523221,189.39,189.31,20.592]
[1761922713821,0.72,189.38,189.31,0.69]
[1761922714021,5.32523221,189.34,189.31,0.69]
[1761922714205,5.32523221,189.34,189.28,5.32523221]
[1761922714206,5.32523221,189.33,189.28,5.97316548]
[1761922714406,21.312,189.39,189.3,5.32523221]
[1761922714610,5.32523221,189.35,189.3,6.01523221]
[1761922714795,5.32523221,189.34,189.3,0.69]
[1761922715500,33.79290379,189.39,189.3,11.29782939]
[1761922715501,0.72,189.39,189.3,11.29782939]
[1761922715814,5.99934647,189.42,189.34,0.28432314]
[1761922716004,5.32523221,189.39,189.34,0.28432314]
[1761922716208,5.32523221,189.38,189.34,0.28432314]
[1761922716401,5.32523221,189.37,189.34,0.28432314]
[1761922716606,5.32523221,189.35,189.34,0.28432314]
[1761922717325,6.00043492,189.38,189.31,0.69]
[1761922717623,0.72,189.37,189.27,0.69]
[1761922717797,0.72,189.37,189.27,5.97343779]
[1761922717798,5.32523221,189.32,189.27,5.97343779]
[1761922718204,5.32523221,189.33,189.28,0.97432314]
[1761922718420,5.32523221,189.34,189.28,0.97432314]
[1761922718634,5.32523221,189.34,189.29,0.69]
[1761922718818,0.72,189.37,189.29,0.69]
[1761922719131,0.72,189.37,189.3,0.28432314]
[1761922719426,5.32523221,189.36,189.3,6.25677854]
[1761922719940,0.72,189.37,189.31,0.69]
[1761922720250,5.32523221,189.36,189.31,0.69]
[1761922720483,5.32523221,189.38,189.33,5.32523221]
[1761922720734,5.32523221,189.38,189.32,5.60955535]
[1761922720935,5.32523221,189.38,189.33,0.69]
[1761922721226,5.32523221,189.39,189.33,11.29697893]
[1761922722027,0.72,189.4,189.33,11.29697893]
[1761922722239,5.32523221,189.39,189.33,11.29697893]
[1761922722438,0.72,189.4,189.34,0.69]
[1761922722613,20.592,189.43,189.31,0.28432314]
[1761922722614,5.32523221,189.37,189.31,0.28432314]
[1761922722812,5.32523221,189.37,189.31,5.56664292]
[1761922723012,5.32523221,189.36,189.31,0.97432314]
[1761922723233,6.00041195,189.38,189.31,0.97432314]
[1761922723535,5.32523221,189.36,189.31,0.97432314]
[1761922724513,6.00041195,189.38,189.31,0.28432314]
[1761922724514,5.32523221,189.35,189.31,0.28432314]
[1761922724721,6.04523221,189.35,189.31,0.28432314]
[1761922724923,5.28041195,189.38,189.29,0.97432314]
[1761922724924,5.32523221,189.33,189.29,0.97432314]
[1761922725140,0.72,189.34,189.28,14.89256199]
[1761922725141,5.32523221,189.31,189.28,9.60943642]
[1761922725312,5.32523221,189.33,189.29,0.97432314]
[1761922725714,5.32523221,189.33,189.28,9.60943642]
[1761922725934,6.04523221,189.33,189.28,10.29943642]
[1761922726442,5.32523221,189.32,189.29,0.28432314]
[1761922726737,5.32523221,189.32,189.28,10.29943642]
[1761922726913,0.72,189.33,189.29,0.28432314]
[1761922727115,6.04523221,189.33,189.29,0.28432314]
[1761922727317,5.32523221,189.32,189.29,0.28432314]
[1761922727939,5.32523221,189.31,189.29,0.28432314]
[1761922728446,5.32523221,189.32,189.29,0.28432314]
[1761922728821,5.32523221,189.3,189.28,9.60943642]
[1761922729222,6.00214525,189.32,189.28,9.60943642]
[1761922729536,5.32523221,189.3,189.28,9.60943642]
[1761922729942,20.592,189.37,189.28,9.60943642]
[1761922729943,0.72,189.32,189.28,9.60943642]
[1761922730125,5.32523221,189.3,189.28,9.60943642]
[1761922731249,6.04523221,189.29,189.28,9.60943642]
[1761922731764,13.20434687,189.34,189.28,9.60943642]
[1761922731765,0.72,189.32,189.28,9.60943642]
[1761922731926,5.32523221,189.31,189.28,9.60943642]
[1761922732127,5.32523221,189.3,189.28,9.60943642]
[1761922733423,0.72,189.31,189.28,9.60943642]
[1761922733624,5.32523221,189.3,189.28,9.60943642]
[1761922735154,6.04523221,189.29,189.28,9.60943642]
[1761922735581,11.32813146,189.29,189.28,9.60943642]
[1761922736641,34.32420728,189.29,189.26,1e-08]
[1761922736856,5.32523221,189.27,189.26,1e-08]
[1761922737465,5.99523221,189.27,189.26,1e-08]
[1761922738166,5.32523221,189.31,189.26,1e-08]
[1761922738167,5.32523221,189.28,189.26,1e-08]
[1761922738346,5.32523221,189.27,189.26,1e-08]
[1761922738972,5.32523221,189.29,189.26,1e-08]
[1761922739469,5.95290034,189.29,189.26,1e-08]
[1761922739647,5.32523221,189.27,189.26,1e-08]
[1761922740069,5.99523221,189.27,189.26,1e-08]
[1761922740952,21.262,189.27,189.26,1e-08]
[1761922741141,5.32523221,189.27,189.26,1e-08]
[1761922741339,11.2786897,189.27,189.26,1e-08]
[1761922742346,5.99523221,189.27,189.26,1e-08]
[1761922742549,11.2786897,189.27,189.26,1e-08]
[1761922742766,5.32523221,189.27,189.26,1e-08]
[1761922742963,0.67,189.32,189.26,1e-08]
[1761922743141,20.592,189.34,189.26,0.68000001]
[1761922743142,0.67,189.33,189.26,0.68000001]
[1761922743339,5.28206211,189.32,189.26,0.68000001]
[1761922743539,0.67,189.33,189.26,0.68000001]
[1761922743540,5.95183335,189.33,189.26,6.24805138]
[1761922743771,5.32523221,189.31,189.26,6.24805138]
[1761922744081,5.99523221,189.31,189.26,0.96432315]
[1761922744260,5.32523221,189.3,189.26,0.96432315]
[1761922744674,5.32523221,189.29,189.26,0.68000001]
[1761922745177,5.32523221,189.29,189.26,1e-08]
[1761922745384,5.32523221,189.27,189.26,1e-08]
[1761922745547,0.67,189.31,189.26,1e-08]
[1761922745873,5.32523221,189.32,189.26,6.00523222]
[1761922746369,5.32523221,189.32,189.27,0.68]
[1761922746669,5.99523221,189.33,189.27,0.68]
[1761922746986,5.32523221,189.32,189.27,0.68]
[1761922747144,5.99523221,189.31,189.26,1e-08]
[1761922747568,5.99523221,189.31,189.26,0.68000001]
[1761922748277,0.67,189.31,189.26,0.68000001]
[1761922748856,5.99523221,189.35,189.29,0.28432314]
[1761922749053,5.99523221,189.35,189.29,5.60955535]
[1761922749787,5.32523221,189.3,189.26,1e-08]
[1761922749955,5.32523221,189.28,189.26,1e-08]
[1761922750274,5.32523221,189.29,189.26,1e-08]
[1761922750455,5.32523221,189.3,189.26,1e-08]
[1761922750671,5.32523221,189.3,189.26,0.68000001]
[1761922751072,5.32523221,189.3,189.26,1e-08]
[1761922751272,2.76436669,189.3,189.26,1e-08]
[1761922751485,0.67,189.3,189.26,1e-08]
[1761922751692,2.09436669,189.31,189.26,0.68000001]